[Event "Swedish Chess Championship 2019: Klass 1"]
[Site "Stiga Sports Arena, Arenatorget 1, Eskilstuna, Sweden"]
[Date "2019.07.09"]
[Round "2.7"]
[White "Akerlund, Fredrik"]
[Black "Magnussen, Pal"]
[Result "1/2-1/2"]
[TimeControl "90 minutes for 40 moves + 30 minutes for the rest of the game + 30 seconds per move from move one"]
[WhiteFideId "1722867"]
[BlackFideId "1711814"]
[WhiteElo "1815"]
[BlackElo "1985"]

1. e4 {[%clk 01:30:55]} {[%emt 00:00:04]} e5 {[%clk 01:30:44]} {[%emt
00:00:20]} 2. Nf3 {[%clk 01:31:19]} {[%emt 00:00:11]} Nc6 {[%clk 01:30:59]}
{[%emt 00:00:28]} 3. Bc4 {[%clk 01:31:23]} {[%emt 00:00:56]} Bc5 {[%clk
01:30:51]} {[%emt 00:01:39]} 4. c3 {[%clk 01:31:40]} {[%emt 00:00:33]} Nf6
{[%clk 01:24:17]} {[%emt 00:04:50]} 5. d4 {[%clk 01:31:42]} {[%emt 00:00:28]}
exd4 {[%clk 01:23:36]} {[%emt 00:01:11]} 6. cxd4 {[%clk 01:30:23]} {[%emt
00:01:49]} Bb4+ {[%clk 01:21:07]} {[%emt 00:02:59]} 7. Bd2 {[%clk 01:29:06]}
{[%emt 00:01:47]} O-O {[%clk 01:16:45]} {[%emt 00:04:52]} 8. d5 {[%clk
01:07:45]} {[%emt 00:21:51]} Bxd2+ {[%clk 01:13:47]} {[%emt 00:03:27]} 9. Nbxd2
{[%clk 01:02:56]} {[%emt 00:05:19]} Ne7 {[%clk 01:12:06]} {[%emt 00:02:11]} 10.
O-O {[%clk 00:59:29]} {[%emt 00:03:57]} d6 {[%clk 01:11:52]} {[%emt 00:00:45]}
11. Re1 {[%clk 00:54:36]} {[%emt 00:05:23]} c6 {[%clk 01:03:21]} {[%emt
00:09:01]} 12. dxc6 {[%clk 00:52:47]} {[%emt 00:02:19]} Nxc6 {[%clk 01:00:18]}
{[%emt 00:03:32]} 13. Rc1 {[%clk 00:39:52]} {[%emt 00:13:25]} d5 {[%clk
00:49:26]} {[%emt 00:11:23]} 14. exd5 {[%clk 00:38:05]} {[%emt 00:02:17]} Nxd5
{[%clk 00:49:28]} {[%emt 00:00:27]} 15. Ne4 {[%clk 00:37:42]} {[%emt 00:00:54]}
Nb6 {[%clk 00:47:09]} {[%emt 00:02:50]} 16. Bf1 {[%clk 00:31:37]} {[%emt
00:06:34]} Qc7 {[%clk 00:44:40]} {[%emt 00:03:00]} 17. b4 {[%clk 00:29:26]}
{[%emt 00:02:41]} a6 {[%clk 00:42:07]} {[%emt 00:03:03]} 18. a3 {[%clk
00:26:18]} {[%emt 00:03:38]} Bg4 {[%clk 00:38:39]} {[%emt 00:03:57]} 19. h3
{[%clk 00:25:01]} {[%emt 00:01:47]} Rad8 {[%clk 00:37:48]} {[%emt 00:01:22]} 20.
Qb3 {[%clk 00:23:31]} {[%emt 00:01:59]} Be6 {[%clk 00:36:25]} {[%emt 00:01:52]}
21. Qc2 {[%clk 00:22:04]} {[%emt 00:01:58]} Qf4 {[%clk 00:35:25]} {[%emt
00:01:31]} 22. Qc5 {[%clk 00:15:53]} {[%emt 00:06:41]} Nd7 {[%clk 00:30:30]}
{[%emt 00:05:24]} 23. Qe3 {[%clk 00:14:54]} {[%emt 00:01:29]} Qxe3 {[%clk
00:29:33]} {[%emt 00:01:27]} 24. Rxe3 {[%clk 00:15:10]} {[%emt 00:00:14]} Bd5
{[%clk 00:25:32]} {[%emt 00:04:31]} 25. Ned2 {[%clk 00:10:19]} {[%emt
00:05:22]} Nf6 {[%clk 00:23:57]} {[%emt 00:02:05]} 26. Nc4 {[%clk 00:09:59]}
{[%emt 00:00:50]} Bxf3 {[%clk 00:21:26]} {[%emt 00:03:01]} 27. Rxf3 {[%clk
00:10:12]} {[%emt 00:00:18]} Rd4 {[%clk 00:21:04]} {[%emt 00:00:52]} 28. Rd3
{[%clk 00:06:34]} {[%emt 00:04:07]} b5 {[%clk 00:17:56]} {[%emt 00:03:38]} 29.
Nb2 {[%clk 00:04:32]} {[%emt 00:02:33]} Rxd3 {[%clk 00:17:06]} {[%emt
00:01:19]} 30. Nxd3 {[%clk 00:04:13]} {[%emt 00:00:49]} Nd4 {[%clk 00:15:57]}
{[%emt 00:01:39]} 31. Nc5 {[%clk 00:04:08]} {[%emt 00:00:36]} g6 {[%clk
00:15:03]} {[%emt 00:01:23]} 32. f3 {[%clk 00:03:04]} {[%emt 00:01:35]} Rd8
{[%clk 00:12:49]} {[%emt 00:02:43]} 33. Kf2 {[%clk 00:03:07]} {[%emt 00:00:27]}
h5 {[%clk 00:09:02]} {[%emt 00:04:18]} 34. h4 {[%clk 00:02:34]} {[%emt
00:01:02]} Nf5 {[%clk 00:08:16]} {[%emt 00:01:17]} 35. Rc2 {[%clk 00:01:37]}
{[%emt 00:01:26]} Rd6 {[%clk 00:07:33]} {[%emt 00:01:13]} 36. g3 {[%clk
00:01:50]} {[%emt 00:00:17]} Kg7 {[%clk 00:07:14]} {[%emt 00:00:49]} 37. a4
{[%clk 00:01:21]} {[%emt 00:01:00]} bxa4 {[%clk 00:06:20]} {[%emt 00:01:23]} 38.
Bxa6 {[%clk 00:01:35]} {[%emt 00:00:17]} Rb6 {[%clk 00:05:54]} {[%emt
00:00:55]} 39. b5 {[%clk 00:01:42]} {[%emt 00:00:24]} Kf8 {[%clk 00:04:47]}
{[%emt 00:01:36]} 40. Nxa4 {[%clk 00:01:56]} {[%emt 00:00:17]} Rb8 {[%clk
00:04:58]} {[%emt 00:00:18]} 41. b6 {[%clk 00:00:33]} {[%emt 00:01:53]} Nd6
{[%clk 00:04:20]} {[%emt 00:01:08]} 42. Rc7 {[%clk 00:14:39]} {[%emt 00:16:25]}
Nd5 {[%clk 00:30:10]} {[%emt 00:04:40]} 43. Rc6 {[%clk 00:11:18]} {[%emt
00:03:51]} Ke7 {[%clk 00:29:13]} {[%emt 00:01:27]} 44. Bc4 {[%clk 00:05:20]}
{[%emt 00:06:28]} 1/2-1/2

[Event "Swedish Chess Championship 2019: Klass 1"]
[Site "Stiga Sports Arena, Arenatorget 1, Eskilstuna, Sweden"]
[Date "2019.07.10"]
[Round "3.8"]
[White "Karlsson, Roger"]
[Black "Muganlinskij, Hussein"]
[Result "0-1"]
[TimeControl "90 minutes for 40 moves + 30 minutes for the rest of the game + 30 seconds per move from move one"]
[WhiteFideId "1716034"]
[BlackFideId "1722581"]
[WhiteElo "1915"]
[BlackElo "2022"]

1. e4 {[%clk 01:30:54]} {[%emt 00:00:08]} c6 {[%clk 01:30:51]} {[%emt
00:00:15]} 2. d4 {[%clk 01:30:54]} {[%emt 00:01:09]} d5 {[%clk 01:31:13]}
{[%emt 00:00:26]} 3. e5 {[%clk 01:27:26]} {[%emt 00:05:28]} c5 {[%clk
01:31:16]} {[%emt 00:00:02]} 4. c3 {[%clk 01:27:12]} Nc6 {[%clk 01:31:34]} 5.
f4 {[%clk 01:26:13]} {[%emt 00:00:15]} cxd4 {[%clk 01:28:29]} {[%emt 00:03:35]}
6. cxd4 {[%clk 01:23:02]} {[%emt 00:03:40]} Nh6 {[%clk 01:28:48]} {[%emt
00:00:11]} 7. Bb5 {[%clk 01:16:24]} {[%emt 00:07:08]} e6 {[%clk 01:28:37]}
{[%emt 00:00:41]} 8. Nf3 {[%clk 01:13:43]} {[%emt 00:03:11]} Nf5 {[%clk
01:28:33]} {[%emt 00:00:33]} 9. g4 {[%clk 01:04:07]} {[%emt 00:10:07]} Nh4
{[%clk 01:26:52]} {[%emt 00:02:11]} 10. O-O {[%clk 01:02:20]} {[%emt 00:02:17]}
h5 {[%clk 01:26:40]} {[%emt 00:00:42]} 11. Nxh4 {[%clk 00:55:46]} {[%emt
00:07:04]} Qxh4 {[%clk 01:25:57]} {[%emt 00:01:14]} 12. g5 {[%clk 00:54:37]}
{[%emt 00:01:39]} Bd7 {[%clk 01:20:21]} {[%emt 00:06:06]} 13. Be2 {[%clk
00:42:41]} {[%emt 00:12:25]} Rc8 {[%clk 01:15:27]} {[%emt 00:05:24]} 14. Be3
{[%clk 00:37:25]} {[%emt 00:06:14]} Qh3 {[%clk 01:14:50]} {[%emt 00:01:38]} 15.
Rf3 {[%clk 00:35:00]} {[%emt 00:02:56]} Qf5 {[%clk 01:11:24]} {[%emt 00:03:55]}
16. Bd3 {[%clk 00:24:24]} {[%emt 00:11:06]} Qg4+ {[%clk 01:11:46]} {[%emt
00:00:08]} 17. Kh1 {[%clk 00:20:42]} {[%emt 00:04:12]} Nxd4 {[%clk 01:02:54]}
{[%emt 00:09:23]} 18. Bxd4 {[%clk 00:15:00]} {[%emt 00:06:11]} Rc1 {[%clk
01:03:16]} {[%emt 00:00:08]} 19. Qxc1 {[%clk 00:15:02]} {[%emt 00:00:29]} Qxf3+
{[%clk 01:03:37]} {[%emt 00:00:09]} 20. Kg1 {[%clk 00:15:17]} {[%emt 00:00:15]}
Qxd3 {[%clk 01:02:06]} {[%emt 00:02:02]} 21. Bxa7 {[%clk 00:13:03]} {[%emt
00:02:44]} Bc6 {[%clk 00:51:57]} {[%emt 00:10:39]} 22. Qd2 {[%clk 00:08:38]}
{[%emt 00:04:55]} Qc4 {[%clk 00:43:43]} {[%emt 00:08:45]} 23. Nc3 {[%clk
00:06:24]} {[%emt 00:02:42]} Bc5+ {[%clk 00:42:38]} {[%emt 00:01:36]} 24. Bxc5
{[%clk 00:06:22]} {[%emt 00:00:32]} Qxc5+ {[%clk 00:42:59]} {[%emt 00:00:08]}
25. Qf2 {[%clk 00:05:43]} {[%emt 00:01:10]} Qc4 {[%clk 00:43:11]} {[%emt
00:00:17]} 26. Rd1 {[%clk 00:04:51]} {[%emt 00:01:21]} O-O {[%clk 00:40:52]}
{[%emt 00:02:50]} 27. Qd4 {[%clk 00:02:19]} {[%emt 00:03:02]} Qa6 {[%clk
00:41:09]} {[%emt 00:00:13]} 28. Rf1 {[%clk 00:00:42]} {[%emt 00:02:07]} g6
{[%clk 00:39:36]} {[%emt 00:02:03]} 29. Rf2 {[%clk 00:01:02]} {[%emt 00:00:10]}
Rc8 {[%clk 00:23:54]} {[%emt 00:16:12]} 30. b3 {[%clk 00:01:06]} {[%emt
00:00:27]} Bd7 {[%clk 00:23:14]} {[%emt 00:01:09]} 31. Rf3 {[%clk 00:00:35]}
{[%emt 00:01:02]} Qa3 {[%clk 00:22:42]} {[%emt 00:01:02]} 32. Rf1 {[%clk
00:00:39]} {[%emt 00:00:26]} Qb2 {[%clk 00:22:54]} {[%emt 00:00:18]} 33. Nb5
{[%clk 00:00:42]} {[%emt 00:00:28]} Qe2 {[%clk 00:15:51]} {[%emt 00:07:33]} 34.
Nd6 {[%clk 00:00:42]} {[%emt 00:00:30]} Qg4+ {[%clk 00:15:41]} {[%emt
00:00:39]} 35. Kh1 {[%clk 00:00:57]} {[%emt 00:00:17]} Rc2 {[%clk 00:15:58]}
{[%emt 00:00:12]} 36. Qg1 {[%clk 00:00:51]} {[%emt 00:00:35]} Qe2 {[%clk
00:10:52]} {[%emt 00:05:36]} 0-1

[Event "Swedish Chess Championship 2019: Klass 1"]
[Site "Stiga Sports Arena, Arenatorget 1, Eskilstuna, Sweden"]
[Date "2019.07.11"]
[Round "4.2"]
[White "Kardell, Mathias"]
[Black "Lyngsjo, Hakan"]
[Result "1/2-1/2"]
[TimeControl "90 minutes for 40 moves + 30 minutes for the rest of the game + 30 seconds per move from move one"]
[WhiteFideId "1710109"]
[BlackFideId "1701649"]
[WhiteElo "2064"]
[BlackElo "2029"]

1. e4 {[%clk 01:30:57]} {[%emt 00:00:05]} Nf6 {[%clk 01:30:52]} {[%emt
00:00:28]} 2. e5 {[%clk 01:31:18]} {[%emt 00:00:29]} Nd5 {[%clk 01:31:18]}
{[%emt 00:00:13]} 3. d4 {[%clk 01:31:37]} {[%emt 00:00:33]} d6 {[%clk
01:31:44]} {[%emt 00:00:13]} 4. Nf3 {[%clk 01:31:41]} {[%emt 00:01:23]} dxe5
{[%clk 01:32:04]} {[%emt 00:00:36]} 5. Nxe5 {[%clk 01:30:45]} {[%emt 00:05:32]}
c6 {[%clk 01:32:30]} 6. c4 {[%clk 01:22:02]} {[%emt 00:02:25]} Nc7 {[%clk
01:26:16]} {[%emt 00:06:43]} 7. Nc3 {[%clk 01:16:40]} {[%emt 00:05:52]} Nd7
{[%clk 01:23:48]} {[%emt 00:02:58]} 8. f4 {[%clk 01:07:13]} {[%emt 00:09:57]}
Nxe5 {[%clk 01:15:39]} {[%emt 00:08:40]} 9. fxe5 {[%clk 01:05:21]} {[%emt
00:02:22]} g6 {[%clk 01:15:32]} {[%emt 00:00:37]} 10. Be2 {[%clk 01:02:36]}
{[%emt 00:03:15]} Bg7 {[%clk 01:15:54]} {[%emt 00:00:07]} 11. Ne4 {[%clk
00:55:51]} {[%emt 00:07:16]} Ne6 {[%clk 01:06:55]} {[%emt 00:09:29]} 12. Be3
{[%clk 00:38:05]} {[%emt 00:18:16]} Qa5+ {[%clk 01:05:23]} {[%emt 00:02:02]} 13.
Qd2 {[%clk 00:28:27]} {[%emt 00:10:09]} Qxd2+ {[%clk 01:05:45]} {[%emt
00:00:08]} 14. Kxd2 {[%clk 00:28:48]} {[%emt 00:00:09]} O-O {[%clk 01:05:25]}
{[%emt 00:00:51]} 15. Rad1 {[%clk 00:27:06]} {[%emt 00:02:11]} Rd8 {[%clk
01:00:52]} {[%emt 00:05:03]} 16. Kc1 {[%clk 00:25:05]} {[%emt 00:02:31]} b6
{[%clk 00:44:21]} {[%emt 00:17:01]} 17. d5 {[%clk 00:19:42]} {[%emt 00:05:53]}
cxd5 {[%clk 00:42:35]} {[%emt 00:02:15]} 18. cxd5 {[%clk 00:20:04]} {[%emt
00:00:08]} Nc7 {[%clk 00:36:18]} {[%emt 00:06:48]} 19. d6 {[%clk 00:18:50]}
{[%emt 00:01:44]} exd6 {[%clk 00:35:56]} {[%emt 00:00:51]} 20. exd6 {[%clk
00:18:54]} {[%emt 00:00:26]} Ne6 {[%clk 00:36:03]} {[%emt 00:00:23]} 21. Ng5
{[%clk 00:13:29]} {[%emt 00:05:55]} Be5 {[%clk 00:26:03]} {[%emt 00:10:31]} 22.
Bf3 {[%clk 00:03:42]} {[%emt 00:10:18]} Rb8 {[%clk 00:26:28]} {[%emt 00:00:05]}
23. Rd5 {[%clk 00:01:16]} {[%emt 00:02:56]} Bxd6 {[%clk 00:25:36]} {[%emt
00:01:21]} 24. Rhd1 {[%clk 00:01:02]} {[%emt 00:00:44]} Be7 {[%clk 00:25:02]}
{[%emt 00:01:04]} 25. Rxd8+ {[%clk 00:00:35]} {[%emt 00:00:58]} Bxd8 {[%clk
00:24:51]} {[%emt 00:00:40]} 26. Ne4 {[%clk 00:00:35]} {[%emt 00:00:30]} Be7
{[%clk 00:21:30]} {[%emt 00:03:52]} 27. Bf2 {[%clk 00:00:35]} {[%emt 00:00:30]}
Bb7 {[%clk 00:20:24]} {[%emt 00:01:35]} 28. Rd7 {[%clk 00:00:37]} {[%emt
00:00:29]} Rc8+ {[%clk 00:19:45]} {[%emt 00:01:09]} 29. Kb1 {[%clk 00:00:39]}
{[%emt 00:00:28]} Rc7 {[%clk 00:17:27]} {[%emt 00:02:48]} 30. Rxc7 {[%clk
00:00:39]} {[%emt 00:00:30]} Nxc7 {[%clk 00:17:56]} {[%emt 00:00:01]} 31. Nf6+
{[%clk 00:00:42]} {[%emt 00:00:26]} Bxf6 {[%clk 00:18:19]} {[%emt 00:00:06]} 32.
Bxb7 {[%clk 00:01:09]} {[%emt 00:00:04]} Be5 {[%clk 00:16:46]} {[%emt
00:02:03]} 33. h3 {[%clk 00:01:34]} {[%emt 00:00:05]} Kf8 {[%clk 00:14:21]}
{[%emt 00:02:55]} 34. a4 {[%clk 00:01:43]} {[%emt 00:00:21]} Ne6 {[%clk
00:13:56]} {[%emt 00:00:55]} 35. a5 {[%clk 00:00:54]} {[%emt 00:01:20]} Bd4
{[%clk 00:13:30]} {[%emt 00:00:55]} 36. Be1 {[%clk 00:00:40]} {[%emt 00:00:45]}
Ke7 {[%clk 00:11:42]} {[%emt 00:02:18]} 37. axb6 {[%clk 00:00:47]} {[%emt
00:00:23]} axb6 {[%clk 00:11:58]} {[%emt 00:00:13]} 38. Bg3 {[%clk 00:00:35]}
{[%emt 00:00:41]} f5 {[%clk 00:10:29]} {[%emt 00:02:00]} 39. Kc2 {[%clk
00:00:38]} {[%emt 00:00:28]} f4 {[%clk 00:09:30]} {[%emt 00:01:29]} 40. Be1
{[%clk 00:00:52]} {[%emt 00:00:16]} Kd6 {[%clk 00:08:07]} {[%emt 00:01:53]} 41.
b4 {[%clk 00:27:11]} {[%emt 00:04:11]} Ke5 {[%clk 00:33:50]} {[%emt 00:04:47]}
42. Kd3 {[%clk 00:26:11]} {[%emt 00:01:29]} g5 {[%clk 00:33:22]} {[%emt
00:00:59]} 43. Bf3 {[%clk 00:23:13]} {[%emt 00:03:28]} Nc7 {[%clk 00:30:19]}
{[%emt 00:03:33]} 44. h4 {[%clk 00:21:27]} {[%emt 00:02:16]} h6 {[%clk
00:29:54]} {[%emt 00:00:55]} 45. hxg5 {[%clk 00:19:35]} {[%emt 00:02:23]} hxg5
{[%clk 00:30:18]} {[%emt 00:00:07]} 46. g3 {[%clk 00:16:49]} {[%emt 00:03:15]}
Be3 {[%clk 00:26:43]} {[%emt 00:04:05]} 47. Bc3+ {[%clk 00:15:45]} {[%emt
00:01:34]} Kf5 {[%clk 00:26:07]} {[%emt 00:01:05]} 48. Bc6 {[%clk 00:11:49]}
{[%emt 00:04:27]} g4 {[%clk 00:20:56]} {[%emt 00:05:40]} 49. Bd7+ {[%clk
00:09:36]} {[%emt 00:02:43]} Kg5 {[%clk 00:21:19]} {[%emt 00:00:07]} 50. Bc6
{[%clk 00:03:59]} {[%emt 00:06:08]} Bc1 {[%clk 00:11:24]} {[%emt 00:10:24]} 51.
Be5 {[%clk 00:02:33]} {[%emt 00:01:56]} Ne6 {[%clk 00:06:38]} {[%emt 00:05:17]}
52. Bd7 {[%clk 00:02:01]} {[%emt 00:01:01]} Nf8 {[%clk 00:06:27]} {[%emt
00:00:40]} 53. Bc6 {[%clk 00:01:21]} {[%emt 00:01:11]} Ng6 {[%clk 00:05:57]}
{[%emt 00:01:01]} 54. Bc7 {[%clk 00:00:46]} {[%emt 00:01:05]} fxg3 {[%clk
00:03:51]} {[%emt 00:02:36]} 55. Bxg3 {[%clk 00:00:53]} {[%emt 00:00:24]} Bf4
{[%clk 00:03:53]} {[%emt 00:00:28]} 56. Bxf4+ {[%clk 00:00:48]} {[%emt
00:00:34]} Kxf4 {[%clk 00:04:17]} {[%emt 00:00:06]} 57. Be8 {[%clk 00:00:38]}
{[%emt 00:00:40]} g3 {[%clk 00:03:38]} {[%emt 00:01:10]} 58. Ke2 {[%clk
00:00:55]} {[%emt 00:00:12]} Ne5 {[%clk 00:02:08]} {[%emt 00:02:00]} 59. Bb5
{[%clk 00:00:45]} {[%emt 00:00:39]} Ng4 {[%clk 00:02:05]} {[%emt 00:00:34]} 60.
Bc6 {[%clk 00:00:45]} {[%emt 00:00:29]} Ne3 {[%clk 00:02:17]} {[%emt 00:00:19]}
61. Bd7 {[%clk 00:00:32]} {[%emt 00:00:44]} Nc2 {[%clk 00:01:17]} {[%emt
00:01:29]} 62. b5 {[%clk 00:00:51]} {[%emt 00:00:09]} Nd4+ {[%clk 00:01:27]}
{[%emt 00:00:21]} 63. Kf1 {[%clk 00:01:00]} {[%emt 00:00:21]} Ke5 {[%clk
00:01:19]} {[%emt 00:00:39]} 64. Kg2 {[%clk 00:01:09]} {[%emt 00:00:20]} Kd6
{[%clk 00:01:39]} {[%emt 00:00:10]} 65. Be8 {[%clk 00:01:21]} {[%emt 00:00:18]}
Nf5 {[%clk 00:01:28]} {[%emt 00:00:41]} 66. Bc6 {[%clk 00:00:36]} {[%emt
00:01:15]} Kc5 {[%clk 00:01:42]} {[%emt 00:00:15]} 67. Kh3 {[%clk 00:00:40]}
{[%emt 00:00:28]} Nd4 {[%clk 00:01:55]} {[%emt 00:00:16]} 68. Be8 {[%clk
00:00:44]} {[%emt 00:00:25]} Nxb5 {[%clk 00:02:01]} {[%emt 00:00:26]} 69. Kxg3
{[%clk 00:01:11]} {[%emt 00:00:03]} Nd4 {[%clk 00:02:03]} {[%emt 00:00:28]} 70.
Kf2 {[%clk 00:01:24]} {[%emt 00:00:16]} Nc6 {[%clk 00:02:28]} {[%emt 00:00:05]}
71. Ke2 {[%clk 00:01:22]} {[%emt 00:00:32]} b5 {[%clk 00:02:53]} {[%emt
00:00:05]} 72. Kd2 {[%clk 00:01:35]} {[%emt 00:00:17]} b4 {[%clk 00:03:19]}
{[%emt 00:00:04]} 1/2-1/2

[Event "Swedish Chess Championship 2019: Klass 1"]
[Site "Stiga Sports Arena, Arenatorget 1, Eskilstuna, Sweden"]
[Date "2019.07.12"]
[Round "5.5"]
[White "Muganlinskij, Hussein"]
[Black "Arvidsson, Jonas"]
[Result "1-0"]
[TimeControl "90 minutes for 40 moves + 30 minutes for the rest of the game + 30 seconds per move from move one"]
[WhiteFideId "1722581"]
[BlackFideId "1717839"]
[WhiteElo "2022"]
[BlackElo "1965"]

1. d4 {[%clk 01:30:56]} {[%emt 00:00:07]} Nf6 {[%clk 01:30:50]} {[%emt
00:00:26]} 2. Bg5 {[%clk 01:31:19]} {[%emt 00:00:23]} e6 {[%clk 01:27:16]}
{[%emt 00:03:26]} 3. Nf3 {[%clk 01:31:22]} {[%emt 00:00:28]} d5 {[%clk
01:26:41]} {[%emt 00:01:05]} 4. Nbd2 {[%clk 01:31:21]} {[%emt 00:00:30]} Be7
{[%clk 01:24:17]} {[%emt 00:02:55]} 5. e3 {[%clk 01:31:28]} {[%emt 00:00:24]}
O-O {[%clk 01:23:24]} {[%emt 00:01:22]} 6. Bd3 {[%clk 01:31:47]} {[%emt
00:00:10]} c5 {[%clk 01:20:02]} {[%emt 00:03:54]} 7. c3 {[%clk 01:31:55]}
{[%emt 00:00:21]} Nbd7 {[%clk 01:15:02]} {[%emt 00:05:30]} 8. O-O {[%clk
01:31:58]} {[%emt 00:00:27]} a6 {[%clk 01:12:38]} {[%emt 00:02:55]} 9. Rc1
{[%clk 01:26:21]} {[%emt 00:06:06]} b6 {[%clk 01:08:23]} {[%emt 00:04:45]} 10.
Qa4 {[%clk 01:26:37]} {[%emt 00:00:15]} Bb7 {[%clk 01:06:26]} {[%emt 00:02:27]}
11. Ne5 {[%clk 01:26:13]} {[%emt 00:00:53]} b5 {[%clk 00:58:59]} {[%emt
00:07:58]} 12. Qd1 {[%clk 01:25:45]} {[%emt 00:00:57]} h6 {[%clk 00:56:34]}
{[%emt 00:02:55]} 13. Bh4 {[%clk 01:25:25]} {[%emt 00:00:50]} Ne4 {[%clk
00:53:25]} {[%emt 00:03:40]} 14. Bxe7 {[%clk 01:20:01]} {[%emt 00:05:53]} Qxe7
{[%clk 00:53:45]} {[%emt 00:00:10]} 15. f4 {[%clk 01:20:17]} {[%emt 00:00:14]}
Ndf6 {[%clk 00:47:15]} {[%emt 00:07:00]} 16. Bxe4 {[%clk 01:09:52]} {[%emt
00:10:54]} Nxe4 {[%clk 00:41:09]} {[%emt 00:06:37]} 17. Nd3 {[%clk 01:05:22]}
{[%emt 00:05:00]} cxd4 {[%clk 00:36:06]} {[%emt 00:05:33]} 18. cxd4 {[%clk
01:04:22]} {[%emt 00:01:29]} Rfc8 {[%clk 00:34:59]} {[%emt 00:01:38]} 19. Nxe4
{[%clk 01:03:11]} {[%emt 00:01:40]} dxe4 {[%clk 00:35:21]} {[%emt 00:00:08]} 20.
Rxc8+ {[%clk 00:58:20]} {[%emt 00:05:21]} Rxc8 {[%clk 00:35:08]} {[%emt
00:00:43]} 21. Nc5 {[%clk 00:58:44]} {[%emt 00:00:06]} Bd5 {[%clk 00:31:11]}
{[%emt 00:04:27]} 22. a3 {[%clk 00:49:31]} {[%emt 00:09:43]} a5 {[%clk
00:24:46]} {[%emt 00:06:56]} 23. Qh5 {[%clk 00:45:47]} {[%emt 00:04:13]} f5
{[%clk 00:22:21]} {[%emt 00:02:55]} 24. g4 {[%clk 00:37:52]} {[%emt 00:08:25]}
Qf7 {[%clk 00:20:04]} {[%emt 00:02:47]} 25. Qxf7+ {[%clk 00:37:16]} {[%emt
00:01:06]} Kxf7 {[%clk 00:20:33]} {[%emt 00:00:02]} 26. h3 {[%clk 00:36:22]}
{[%emt 00:01:24]} a4 {[%clk 00:19:31]} {[%emt 00:01:32]} 27. Rc1 {[%clk
00:35:23]} {[%emt 00:01:29]} g6 {[%clk 00:18:50]} {[%emt 00:01:11]} 28. Rc3
{[%clk 00:35:17]} {[%emt 00:00:36]} g5 {[%clk 00:17:08]} {[%emt 00:02:12]} 29.
Nxe4 {[%clk 00:24:57]} {[%emt 00:10:49]} Rxc3 {[%clk 00:16:43]} {[%emt
00:00:57]} 30. Nxc3 {[%clk 00:25:08]} {[%emt 00:00:19]} Bc4 {[%clk 00:17:06]}
{[%emt 00:00:08]} 31. Kf2 {[%clk 00:23:13]} {[%emt 00:02:25]} Kf6 {[%clk
00:15:40]} {[%emt 00:01:56]} 32. Kg3 {[%clk 00:21:05]} {[%emt 00:02:37]} Kg6
{[%clk 00:12:55]} {[%emt 00:03:16]} 33. e4 {[%clk 00:20:27]} {[%emt 00:01:07]}
Bf1 {[%clk 00:12:13]} {[%emt 00:01:11]} 34. h4 {[%clk 00:19:03]} {[%emt
00:01:55]} fxg4 {[%clk 00:11:18]} {[%emt 00:01:25]} 35. hxg5 {[%clk 00:17:24]}
{[%emt 00:02:09]} h5 {[%clk 00:06:46]} {[%emt 00:05:02]} 36. Kh4 {[%clk
00:17:21]} {[%emt 00:00:33]} Bc4 {[%clk 00:06:48]} {[%emt 00:00:27]} 37. Nd1
{[%clk 00:11:37]} {[%emt 00:06:15]} Bd3 {[%clk 00:05:47]} {[%emt 00:01:32]} 38.
Nc3 {[%clk 00:11:36]} {[%emt 00:00:30]} Bc4 {[%clk 00:06:01]} {[%emt 00:00:16]}
39. d5 {[%clk 00:11:24]} {[%emt 00:00:43]} exd5 {[%clk 00:06:08]} {[%emt
00:00:23]} 40. f5+ {[%clk 00:11:49]} {[%emt 00:00:05]} Kf7 {[%clk 00:04:39]}
{[%emt 00:01:57]} 41. Nxd5 {[%clk 00:10:40]} {[%emt 00:01:39]} Bd3 {[%clk
00:04:22]} {[%emt 00:00:47]} 42. Nf6 {[%clk 00:09:30]} {[%emt 00:01:40]} Bc2
{[%clk 00:04:17]} {[%emt 00:00:36]} 43. Kg3 {[%clk 00:09:10]} {[%emt 00:00:50]}
Bd3 {[%clk 00:04:20]} {[%emt 00:00:27]} 44. Kf4 {[%clk 00:09:29]} {[%emt
00:00:10]} Ke8 {[%emt 00:00:36]} 1-0